[Event "Titled Tuesday Blitz October 31 Late 2023"]
[White "Musovic, Armin"]
[Black "Eljanov, Pavel"]
[WhiteFideId "939935"]
[BlackFideId "14102951"]
[WhiteElo "2454"]
[BlackElo "2819"]
[Result "1/2-1/2"]
[Round "1"]
[TimeControl "180+1"]
[Date "2023.10.31"]
[WhiteClock "0:00:57"]
[BlackClock "0:00:06"]
[Board "46"]

1. a3 {[%clk 0:03:00]}  d5 {[%clk 0:02:59]} 2. Nc3 {[%clk 0:03:00]}  d4 {[%clk 0:02:58]} 3. Ne4 {[%clk 0:03:01]}  f5 {[%clk 0:02:58]} 4. Ng3 {[%clk 0:03:01]}  e5 {[%clk 0:02:58]} 5. e4 {[%clk 0:03:02]}  dxe3 {[%clk 0:02:57]} 6. fxe3 {[%clk 0:03:02]}  Nf6 {[%clk 0:02:56]} 7. Bc4 {[%clk 0:03:02]}  Bd6 {[%clk 0:02:46]} 8. Nf3 {[%clk 0:03:01]}  Qe7 {[%clk 0:02:37]} 9. d4 {[%clk 0:02:58]}  e4 {[%clk 0:02:35]} 10. Ng5 {[%clk 0:02:55]}  Rf8 {[%clk 0:02:20]} 11. Bd2 {[%clk 0:02:45]}  h6 {[%clk 0:02:17]} 12. Nh3 {[%clk 0:02:46]}  g5 {[%clk 0:02:12]} 13. Nh5 {[%clk 0:02:41]}  Ng4 {[%clk 0:01:51]} 14. Qe2 {[%clk 0:02:39]}  Nc6 {[%clk 0:01:44]} 15. O-O-O {[%clk 0:02:29]}  Bd7 {[%clk 0:01:43]} 16. Kb1 {[%clk 0:02:29]}  O-O-O {[%clk 0:01:42]} 17. Ba2 {[%clk 0:02:23]}  Bxh2 {[%clk 0:01:14]} 18. c4 {[%clk 0:02:11]}  Qf7 {[%clk 0:01:08]} 19. c5 {[%clk 0:02:09]}  Qxh5 {[%clk 0:01:07]} 20. Rxh2 {[%clk 0:02:09]}  Qg6 {[%clk 0:01:07]} 21. Rhh1 {[%clk 0:02:09]}  Be6 {[%clk 0:01:07]} 22. Bc4 {[%clk 0:02:05]}  Bxc4 {[%clk 0:00:52]} 23. Qxc4 {[%clk 0:02:06]}  Ne7 {[%clk 0:00:53]} 24. Rde1 {[%clk 0:01:56]}  Nd5 {[%clk 0:00:52]} 25. Rhf1 {[%clk 0:01:54]}  Qa6 {[%clk 0:00:48]} 26. Qb3 {[%clk 0:01:48]}  Qd3+ {[%clk 0:00:44]} 27. Qc2 {[%clk 0:01:43]}  Qxc2+ {[%clk 0:00:43]} 28. Kxc2 {[%clk 0:01:44]}  f4 {[%clk 0:00:35]} 29. exf4 {[%clk 0:01:40]}  e3 {[%clk 0:00:36]} 30. fxg5 {[%clk 0:01:37]}  exd2 {[%clk 0:00:34]} 31. Kxd2 {[%clk 0:01:38]}  Rxf1 {[%clk 0:00:24]} 32. Rxf1 {[%clk 0:01:38]}  Nge3 {[%clk 0:00:24]} 33. Rf2 {[%clk 0:01:32]}  hxg5 {[%clk 0:00:23]} 34. Nxg5 {[%clk 0:01:32]}  Rg8 {[%clk 0:00:23]} 35. Ne4 {[%clk 0:01:26]}  Rxg2 {[%clk 0:00:23]} 36. Rxg2 {[%clk 0:01:26]}  Nxg2 {[%clk 0:00:23]} 37. b4 {[%clk 0:01:27]}  Ngf4 {[%clk 0:00:22]} 38. Ng5 {[%clk 0:01:26]}  Kd7 {[%clk 0:00:21]} 39. b5 {[%clk 0:01:26]}  c6 {[%clk 0:00:19]} 40. a4 {[%clk 0:01:26]}  a5 {[%clk 0:00:18]} 41. Ne4 {[%clk 0:01:22]}  Ne6 {[%clk 0:00:16]} 42. Nd6 {[%clk 0:01:17]}  Kc7 {[%clk 0:00:13]} 43. Kd3 {[%clk 0:01:13]}  cxb5 {[%clk 0:00:10]} 44. Nxb5+ {[%clk 0:01:09]}  Kc6 {[%clk 0:00:10]} 45. Na7+ {[%clk 0:01:08]}  Kd7 {[%clk 0:00:10]} 46. Kc4 {[%clk 0:01:08]}  Nec7 {[%clk 0:00:09]} 47. Nb5 {[%clk 0:01:01]}  Ne3+ {[%clk 0:00:10]} 48. Kb3 {[%clk 0:00:59]}  Nxb5 {[%clk 0:00:09]} 49. axb5 {[%clk 0:01:00]}  Nf5 {[%clk 0:00:07]} 50. Ka4 {[%clk 0:00:58]}  Nxd4 {[%clk 0:00:06]} 51. Kxa5 {[%clk 0:00:59]}  Kc7 {[%clk 0:00:07]} 52. Kb4 {[%clk 0:00:55]}  Nf5 {[%clk 0:00:06]} 53. Kc4 {[%clk 0:00:55]}  Ne7 {[%clk 0:00:06]} 54. Kd4 {[%clk 0:00:55]}  Nc8 {[%clk 0:00:05]} 55. Kc4 {[%clk 0:00:56]}  Ne7 {[%clk 0:00:05]} 56. Kd4 {[%clk 0:00:56]}  Nf5+ {[%clk 0:00:05]} 57. Kd5 {[%clk 0:00:56]}  Ne3+ {[%clk 0:00:05]} 58. Kd4 {[%clk 0:00:57]}  Ng4 {[%clk 0:00:06]} 59. Kd5 {[%clk 0:00:57]}  Nf2 {[%clk 0:00:05]} 60. Kd4 {[%clk 0:00:57]}  Kd8 {[%clk 0:00:05]} 61. Kc4 {[%clk 0:00:56]}  Kc8 {[%clk 0:00:05]} 62. Kd4 {[%clk 0:00:56]}  Ng4 {[%clk 0:00:05]} 63. Kc4 {[%clk 0:00:56]}  Nf6 {[%clk 0:00:06]} 64. Kd4 {[%clk 0:00:56]}  Ne8 {[%clk 0:00:06]} 65. Kc4 {[%clk 0:00:54]}  Nc7 {[%clk 0:00:06]} 66. Kb4 {[%clk 0:00:55]}  Kb8 {[%clk 0:00:07]} 67. Ka5 {[%clk 0:00:56]}  Ne6 {[%clk 0:00:06]} 68. Kb6 {[%clk 0:00:54]}  Nf8 {[%clk 0:00:04]} 69. c6 {[%clk 0:00:53]}  bxc6 {[%clk 0:00:05]} 70. bxc6 {[%clk 0:00:54]}  Kc8 {[%clk 0:00:05]} 71. Kc5 {[%clk 0:00:54]}  Kc7 {[%clk 0:00:05]} 72. Kd4 {[%clk 0:00:55]}  Ne6+ {[%clk 0:00:05]} 73. Kc4 {[%clk 0:00:56]}  Nd8 {[%clk 0:00:06]} 74. Kc3 {[%clk 0:00:57]}  Nxc6 {[%clk 0:00:06]} 1/2-1/2


[Site "https://www.chess.com"]

[Event "Titled Tuesday Blitz October 31 Late 2023"]
[White "Brodsky, David"]
[Black "Mushini Ajay"]
[WhiteFideId "2073250"]
[BlackFideId "35066188"]
[WhiteElo "2809"]
[BlackElo "2448"]
[Result "1-0"]
[Round "1"]
[TimeControl "180+1"]
[Date "2023.10.31"]
[WhiteClock "0:01:58"]
[BlackClock "0:01:42"]
[Board "49"]

1. e4 {[%clk 0:03:00]}  c5 {[%clk 0:02:58]} 2. Nf3 {[%clk 0:03:01]}  e6 {[%clk 0:02:58]} 3. d4 {[%clk 0:03:01]}  cxd4 {[%clk 0:02:59]} 4. Nxd4 {[%clk 0:03:01]}  Nc6 {[%clk 0:02:59]} 5. Nc3 {[%clk 0:03:02]}  Qc7 {[%clk 0:02:58]} 6. Be3 {[%clk 0:03:02]}  Nf6 {[%clk 0:02:57]} 7. f4 {[%clk 0:02:57]}  d6 {[%clk 0:02:55]} 8. Qf3 {[%clk 0:02:54]}  Be7 {[%clk 0:02:54]} 9. O-O-O {[%clk 0:02:53]}  a6 {[%clk 0:02:53]} 10. Kb1 {[%clk 0:02:47]}  Nxd4 {[%clk 0:02:52]} 11. Bxd4 {[%clk 0:02:47]}  e5 {[%clk 0:02:51]} 12. fxe5 {[%clk 0:02:47]}  dxe5 {[%clk 0:02:52]} 13. Qg3 {[%clk 0:02:42]}  O-O {[%clk 0:02:22]} 14. Bxe5 {[%clk 0:02:37]}  Qc6 {[%clk 0:02:19]} 15. Nd5 {[%clk 0:02:18]}  Bd8 {[%clk 0:02:14]} 16. Bd3 {[%clk 0:01:59]}  Nxd5 {[%clk 0:01:42]} 17. Qxg7# {[%clk 0:01:58]} 1-0


[Site "https://www.chess.com"]

[Event "Titled Tuesday Blitz October 31 Late 2023"]
[White "Perez Rodriguez, Jennifer"]
[Black "Kobo, Ori"]
[WhiteFideId "3507831"]
[BlackFideId "2812320"]
[WhiteElo "2446"]
[BlackElo "2807"]
[Result "0-1"]
[Round "1"]
[TimeControl "180+1"]
[Date "2023.10.31"]
[WhiteClock "0:00:03"]
[BlackClock "0:00:13"]
[Board "50"]

1. e4 {[%clk 0:02:58]}  c5 {[%clk 0:02:59]} 2. c3 {[%clk 0:02:58]}  d5 {[%clk 0:02:58]} 3. exd5 {[%clk 0:02:58]}  Qxd5 {[%clk 0:02:58]} 4. d4 {[%clk 0:02:59]}  Nc6 {[%clk 0:02:57]} 5. Nf3 {[%clk 0:03:00]}  Nf6 {[%clk 0:02:52]} 6. Na3 {[%clk 0:02:58]}  Bg4 {[%clk 0:02:44]} 7. Be2 {[%clk 0:02:48]}  e6 {[%clk 0:02:34]} 8. Nb5 {[%clk 0:02:48]}  Qd7 {[%clk 0:02:28]} 9. dxc5 {[%clk 0:02:44]}  Bxc5 {[%clk 0:02:23]} 10. Qxd7+ {[%clk 0:02:42]}  Kxd7 {[%clk 0:02:24]} 11. Bf4 {[%clk 0:02:29]}  a6 {[%clk 0:02:13]} 12. Rd1+ {[%clk 0:02:28]}  Ke7 {[%clk 0:02:13]} 13. Nd6 {[%clk 0:02:24]}  Nd5 {[%clk 0:02:04]} 14. Nxb7 {[%clk 0:02:19]}  Bxf2+ {[%clk 0:02:04]} 15. Kxf2 {[%clk 0:02:19]}  Nxf4 {[%clk 0:02:05]} 16. Nc5 {[%clk 0:02:13]}  Nxe2 {[%clk 0:01:57]} 17. Kxe2 {[%clk 0:02:12]}  Ne5 {[%clk 0:01:52]} 18. Kf2 {[%clk 0:02:06]}  Bxf3 {[%clk 0:01:49]} 19. gxf3 {[%clk 0:02:05]}  Rhc8 {[%clk 0:01:50]} 20. Nd3 {[%clk 0:01:54]}  Nc6 {[%clk 0:01:36]} 21. Rhe1 {[%clk 0:01:49]}  Rab8 {[%clk 0:01:33]} 22. b3 {[%clk 0:01:46]}  a5 {[%clk 0:01:33]} 23. c4 {[%clk 0:01:44]}  a4 {[%clk 0:01:29]} 24. Nc5 {[%clk 0:01:18]}  axb3 {[%clk 0:01:30]} 25. axb3 {[%clk 0:01:18]}  Ra8 {[%clk 0:01:25]} 26. Rd7+ {[%clk 0:01:17]}  Ke8 {[%clk 0:01:21]} 27. Rb7 {[%clk 0:00:56]}  Ra2+ {[%clk 0:01:18]} 28. Kg3 {[%clk 0:00:55]}  Nd4 {[%clk 0:01:12]} 29. Ne4 {[%clk 0:00:51]}  Nf5+ {[%clk 0:01:09]} 30. Kh3 {[%clk 0:00:46]}  Rd8 {[%clk 0:00:58]} 31. Ng3 {[%clk 0:00:34]}  Nd4 {[%clk 0:00:48]} 32. Re3 {[%clk 0:00:24]}  Rf2 {[%clk 0:00:36]} 33. Nh5 {[%clk 0:00:18]}  Kf8 {[%clk 0:00:30]} 34. Kg3 {[%clk 0:00:18]}  Rb2 {[%clk 0:00:28]} 35. Kh3 {[%clk 0:00:16]}  g6 {[%clk 0:00:27]} 36. Nf4 {[%clk 0:00:15]}  Nf5 {[%clk 0:00:25]} 37. Re2 {[%clk 0:00:12]}  Rb1 {[%clk 0:00:24]} 38. c5 {[%clk 0:00:09]}  g5 {[%clk 0:00:18]} 39. Nh5 {[%clk 0:00:07]}  Rd3 {[%clk 0:00:18]} 40. Rf2 {[%clk 0:00:04]}  Rbxb3 {[%clk 0:00:16]} 41. Rxb3 {[%clk 0:00:04]}  Rxb3 {[%clk 0:00:17]} 42. Rc2 {[%clk 0:00:05]}  Rb4 {[%clk 0:00:13]} 43. c6 {[%clk 0:00:03]}  Rh4+ {[%clk 0:00:13]} 44. Kg2 {[%clk 0:00:04]}  Rxh5 {[%clk 0:00:13]} 45. c7 {[%clk 0:00:04]}  Ne7 {[%clk 0:00:13]} 46. c8=Q+ {[%clk 0:00:04]}  Nxc8 {[%clk 0:00:14]} 47. Rxc8+ {[%clk 0:00:05]}  Kg7 {[%clk 0:00:14]} 48. Rc7 {[%clk 0:00:06]}  Rh4 {[%clk 0:00:14]} 49. Kg3 {[%clk 0:00:06]}  Rf4 {[%clk 0:00:15]} 50. Rc5 {[%clk 0:00:06]}  h6 {[%clk 0:00:16]} 51. Rc7 {[%clk 0:00:07]}  Kg6 {[%clk 0:00:16]} 52. Rd7 {[%clk 0:00:07]}  Rf5 {[%clk 0:00:16]} 53. Rb7 {[%clk 0:00:07]}  Rd5 {[%clk 0:00:16]} 54. Rb8 {[%clk 0:00:07]}  Kg7 {[%clk 0:00:15]} 55. Rb7 {[%clk 0:00:07]}  Rd3 {[%clk 0:00:15]} 56. Kg4 {[%clk 0:00:07]}  Kg6 {[%clk 0:00:14]} 57. Kg3 {[%clk 0:00:07]}  h5 {[%clk 0:00:13]} 58. Rb8 {[%clk 0:00:07]}  g4 {[%clk 0:00:13]} 59. Rg8+ {[%clk 0:00:07]}  Kh7 {[%clk 0:00:13]} 60. Rg5 {[%clk 0:00:06]}  Rxf3+ {[%clk 0:00:13]} 61. Kg2 {[%clk 0:00:05]}  Kh6 {[%clk 0:00:14]} 62. Rg8 {[%clk 0:00:03]}  Rf5 {[%clk 0:00:13]} 0-1


[Site "https://www.chess.com"]

[Event "Titled Tuesday Blitz October 31 Late 2023"]
[White "Jovic, Stanoje"]
[Black "Sokolovsky, Yahli"]
[WhiteFideId "905020"]
[BlackFideId "2820242"]
[WhiteElo "2439"]
[BlackElo "2792"]
[Result "0-1"]
[Round "1"]
[TimeControl "180+1"]
[Date "2023.10.31"]
[WhiteClock "0:00:00"]
[BlackClock "0:00:07"]
[Board "52"]

1. c4 {[%clk 0:03:00]}  d6 {[%clk 0:02:59]} 2. g3 {[%clk 0:03:00]}  e5 {[%clk 0:02:58]} 3. Bg2 {[%clk 0:03:00]}  Nc6 {[%clk 0:02:59]} 4. Nc3 {[%clk 0:03:00]}  Be6 {[%clk 0:03:00]} 5. Qa4 {[%clk 0:02:57]}  Qd7 {[%clk 0:02:59]} 6. Nf3 {[%clk 0:02:53]}  Be7 {[%clk 0:02:49]} 7. Nd5 {[%clk 0:02:46]}  Nf6 {[%clk 0:02:47]} 8. Nxe7 {[%clk 0:02:43]}  Qxe7 {[%clk 0:02:37]} 9. Nxe5 {[%clk 0:02:31]}  O-O {[%clk 0:02:17]} 10. Nxc6 {[%clk 0:02:29]}  bxc6 {[%clk 0:02:17]} 11. Bxc6 {[%clk 0:02:25]}  Bg4 {[%clk 0:01:40]} 12. f3 {[%clk 0:02:16]}  Bd7 {[%clk 0:01:40]} 13. Kf2 {[%clk 0:02:07]}  Rfe8 {[%clk 0:01:30]} 14. Re1 {[%clk 0:02:01]}  Qe6 {[%clk 0:01:23]} 15. Bxd7 {[%clk 0:01:53]}  Nxd7 {[%clk 0:01:23]} 16. Kg2 {[%clk 0:01:50]}  Nb6 {[%clk 0:01:19]} 17. Qc2 {[%clk 0:01:41]}  Nxc4 {[%clk 0:01:17]} 18. b3 {[%clk 0:01:37]}  Nb6 {[%clk 0:01:17]} 19. Bb2 {[%clk 0:01:35]}  c5 {[%clk 0:01:10]} 20. e4 {[%clk 0:01:34]}  Rac8 {[%clk 0:01:08]} 21. Rad1 {[%clk 0:01:31]}  f6 {[%clk 0:00:53]} 22. Qc3 {[%clk 0:01:28]}  Qf7 {[%clk 0:00:44]} 23. h4 {[%clk 0:01:21]}  c4 {[%clk 0:00:40]} 24. b4 {[%clk 0:01:16]}  d5 {[%clk 0:00:36]} 25. e5 {[%clk 0:01:01]}  fxe5 {[%clk 0:00:20]} 26. Rxe5 {[%clk 0:00:59]}  Na4 {[%clk 0:00:21]} 27. Qd4 {[%clk 0:00:56]}  Nxb2 {[%clk 0:00:15]} 28. Qxb2 {[%clk 0:00:56]}  Rxe5 {[%clk 0:00:15]} 29. Qxe5 {[%clk 0:00:55]}  Re8 {[%clk 0:00:16]} 30. Qf4 {[%clk 0:00:49]}  Re2+ {[%clk 0:00:08]} 31. Kf1 {[%clk 0:00:47]}  Qxf4 {[%clk 0:00:09]} 32. gxf4 {[%clk 0:00:47]}  Rh2 {[%clk 0:00:09]} 33. a4 {[%clk 0:00:44]}  Rxh4 {[%clk 0:00:08]} 34. Ke2 {[%clk 0:00:44]}  Rxf4 {[%clk 0:00:08]} 35. Ke3 {[%clk 0:00:42]}  g5 {[%clk 0:00:08]} 36. Rb1 {[%clk 0:00:41]}  d4+ {[%clk 0:00:07]} 37. Ke2 {[%clk 0:00:40]}  Rf6 {[%clk 0:00:04]} 38. b5 {[%clk 0:00:40]}  Re6+ {[%clk 0:00:04]} 39. Kf2 {[%clk 0:00:38]}  Re5 {[%clk 0:00:02]} 40. a5 {[%clk 0:00:37]}  Kf7 {[%clk 0:00:02]} 41. b6 {[%clk 0:00:37]}  axb6 {[%clk 0:00:02]} 42. axb6 {[%clk 0:00:37]}  Re8 {[%clk 0:00:03]} 43. Rb4 {[%clk 0:00:37]}  c3 {[%clk 0:00:03]} 44. dxc3 {[%clk 0:00:34]}  dxc3 {[%clk 0:00:04]} 45. Rc4 {[%clk 0:00:34]}  Rb8 {[%clk 0:00:05]} 46. Rc6 {[%clk 0:00:33]}  c2 {[%clk 0:00:05]} 47. Rxc2 {[%clk 0:00:31]}  Rxb6 {[%clk 0:00:05]} 48. Kg3 {[%clk 0:00:32]}  Kg6 {[%clk 0:00:05]} 49. Rc8 {[%clk 0:00:31]}  h6 {[%clk 0:00:06]} 50. Rg8+ {[%clk 0:00:31]}  Kh7 {[%clk 0:00:07]} 51. Rc8 {[%clk 0:00:31]}  Kg7 {[%clk 0:00:07]} 52. Ra8 {[%clk 0:00:30]}  Rc6 {[%clk 0:00:07]} 53. Rb8 {[%clk 0:00:30]}  Rd6 {[%clk 0:00:07]} 54. Rc8 {[%clk 0:00:30]}  Rb6 {[%clk 0:00:08]} 55. Ra8 {[%clk 0:00:29]}  Rc6 {[%clk 0:00:08]} 56. Rb8 {[%clk 0:00:29]}  Re6 {[%clk 0:00:09]} 57. Rc8 {[%clk 0:00:29]}  Re1 {[%clk 0:00:09]} 58. Rb8 {[%clk 0:00:29]}  Rg1+ {[%clk 0:00:09]} 59. Kf2 {[%clk 0:00:29]}  Rc1 {[%clk 0:00:10]} 60. Kg3 {[%clk 0:00:29]}  Kg6 {[%clk 0:00:11]} 61. Rg8+ {[%clk 0:00:27]}  Kh5 {[%clk 0:00:12]} 62. Rh8 {[%clk 0:00:28]}  Rc3 {[%clk 0:00:12]} 63. Kg2 {[%clk 0:00:27]}  Rc2+ {[%clk 0:00:12]} 64. Kg3 {[%clk 0:00:27]}  Rc3 {[%clk 0:00:13]} 65. Kg2 {[%clk 0:00:27]}  Rc6 {[%clk 0:00:14]} 66. Kg3 {[%clk 0:00:27]}  Rb6 {[%clk 0:00:14]} 67. Rh7 {[%clk 0:00:26]}  Rb3 {[%clk 0:00:14]} 68. Kg2 {[%clk 0:00:25]}  Rc3 {[%clk 0:00:15]} 69. Kf2 {[%clk 0:00:24]}  Rc6 {[%clk 0:00:11]} 70. Kg3 {[%clk 0:00:23]}  Kg6 {[%clk 0:00:12]} 71. Rh8 {[%clk 0:00:23]}  Rc3 {[%clk 0:00:11]} 72. Kg2 {[%clk 0:00:21]}  Rb3 {[%clk 0:00:10]} 73. Rg8+ {[%clk 0:00:20]}  Kf5 {[%clk 0:00:09]} 74. Rh8 {[%clk 0:00:19]}  Rb6 {[%clk 0:00:08]} 75. Kg3 {[%clk 0:00:18]}  Re6 {[%clk 0:00:09]} 76. Kg2 {[%clk 0:00:18]}  Kf4 {[%clk 0:00:08]} 77. Rf8+ {[%clk 0:00:18]}  Ke5 {[%clk 0:00:06]} 78. Kg3 {[%clk 0:00:17]}  Rf6 {[%clk 0:00:07]} 79. Re8+ {[%clk 0:00:16]}  Kf5 {[%clk 0:00:07]} 80. Rh8 {[%clk 0:00:16]}  Re6 {[%clk 0:00:07]} 81. Rf8+ {[%clk 0:00:16]}  Rf6 {[%clk 0:00:08]} 82. Rh8 {[%clk 0:00:16]}  Ra6 {[%clk 0:00:08]} 83. Rf8+ {[%clk 0:00:16]}  Kg6 {[%clk 0:00:09]} 84. Rg8+ {[%clk 0:00:16]}  Kh5 {[%clk 0:00:09]} 85. Rh8 {[%clk 0:00:15]}  Ra2 {[%clk 0:00:10]} 86. Kh3 {[%clk 0:00:13]}  Ra3 {[%clk 0:00:08]} 87. Kg2 {[%clk 0:00:13]}  Rd3 {[%clk 0:00:08]} 88. Kf2 {[%clk 0:00:12]}  Rd2+ {[%clk 0:00:06]} 89. Kg3 {[%clk 0:00:12]}  Rd6 {[%clk 0:00:06]} 90. Kg2 {[%clk 0:00:11]}  Kg6 {[%clk 0:00:06]} 91. Rg8+ {[%clk 0:00:11]}  Kf5 {[%clk 0:00:07]} 92. Rf8+ {[%clk 0:00:11]}  Rf6 {[%clk 0:00:06]} 93. Re8 {[%clk 0:00:09]}  h5 {[%clk 0:00:04]} 94. Rh8 {[%clk 0:00:09]}  h4 {[%clk 0:00:04]} 95. Ra8 {[%clk 0:00:08]}  Re6 {[%clk 0:00:03]} 96. Rf8+ {[%clk 0:00:07]}  Kg6 {[%clk 0:00:03]} 97. Rg8+ {[%clk 0:00:07]}  Kf6 {[%clk 0:00:04]} 98. Rf8+ {[%clk 0:00:07]}  Ke5 {[%clk 0:00:04]} 99. Rg8 {[%clk 0:00:07]}  Kf5 {[%clk 0:00:04]} 100. Rf8+ {[%clk 0:00:07]}  Rf6 {[%clk 0:00:04]} 101. Rg8 {[%clk 0:00:07]}  Rd6 {[%clk 0:00:05]} 102. Rf8+ {[%clk 0:00:07]}  Kg6 {[%clk 0:00:05]} 103. Rg8+ {[%clk 0:00:07]}  Kf6 {[%clk 0:00:06]} 104. Rf8+ {[%clk 0:00:07]}  Kg7 {[%clk 0:00:07]} 105. Ra8 {[%clk 0:00:05]}  Rd2+ {[%clk 0:00:06]} 106. Kh3 {[%clk 0:00:05]}  Rf2 {[%clk 0:00:07]} 107. Kg4 {[%clk 0:00:00]}  Rg2+ {[%clk 0:00:07]} 0-1


[Site "https://www.chess.com"]

[Event "Titled Tuesday Blitz October 31 Late 2023"]
[White "Javakhadze, Zurab"]
[Black "Prieto Aranguren, Alain"]
[WhiteFideId "13603647"]
[BlackFideId "2268906"]
[WhiteElo "2781"]
[BlackElo "2438"]
[Result "1-0"]
[Round "1"]
[TimeControl "180+1"]
[Date "2023.10.31"]
[WhiteClock "0:00:12"]
[BlackClock "0:00:00"]
[Board "53"]

1. Nf3 {[%clk 0:03:00]}  f5 {[%clk 0:02:57]} 2. d3 {[%clk 0:03:00]}  Nf6 {[%clk 0:02:56]} 3. e4 {[%clk 0:03:01]}  d6 {[%clk 0:02:56]} 4. Nc3 {[%clk 0:02:52]}  e5 {[%clk 0:02:55]} 5. exf5 {[%clk 0:02:47]}  Bxf5 {[%clk 0:02:54]} 6. d4 {[%clk 0:02:48]}  e4 {[%clk 0:02:53]} 7. Nh4 {[%clk 0:02:42]}  Bd7 {[%clk 0:02:27]} 8. Bg5 {[%clk 0:02:24]}  Be7 {[%clk 0:02:04]} 9. Bc4 {[%clk 0:02:21]}  Bg4 {[%clk 0:01:54]} 10. f3 {[%clk 0:02:11]}  exf3 {[%clk 0:01:51]} 11. Nxf3 {[%clk 0:02:08]}  c6 {[%clk 0:01:33]} 12. O-O {[%clk 0:01:51]}  d5 {[%clk 0:01:32]} 13. Bd3 {[%clk 0:01:52]}  O-O {[%clk 0:01:26]} 14. Qe1 {[%clk 0:01:51]}  Nbd7 {[%clk 0:01:14]} 15. Qh4 {[%clk 0:01:50]}  Bxf3 {[%clk 0:01:13]} 16. Rxf3 {[%clk 0:01:50]}  Rf7 {[%clk 0:01:11]} 17. Raf1 {[%clk 0:01:44]}  Nf8 {[%clk 0:01:04]} 18. Ne2 {[%clk 0:01:29]}  Qd7 {[%clk 0:00:57]} 19. Ng3 {[%clk 0:01:22]}  Re8 {[%clk 0:00:55]} 20. Nf5 {[%clk 0:01:21]}  Ng6 {[%clk 0:00:42]} 21. Nxe7+ {[%clk 0:01:17]}  Qxe7 {[%clk 0:00:42]} 22. Bxg6 {[%clk 0:01:12]}  hxg6 {[%clk 0:00:42]} 23. Bxf6 {[%clk 0:01:11]}  Rxf6 {[%clk 0:00:40]} 24. Rxf6 {[%clk 0:01:03]}  gxf6 {[%clk 0:00:40]} 25. Qxf6 {[%clk 0:00:45]}  Qxf6 {[%clk 0:00:39]} 26. Rxf6 {[%clk 0:00:46]}  Re2 {[%clk 0:00:37]} 27. Rxg6+ {[%clk 0:00:43]}  Kf7 {[%clk 0:00:37]} 28. Rg3 {[%clk 0:00:39]}  Rxc2 {[%clk 0:00:37]} 29. Rb3 {[%clk 0:00:39]}  b5 {[%clk 0:00:37]} 30. h4 {[%clk 0:00:39]}  Rd2 {[%clk 0:00:37]} 31. Rc3 {[%clk 0:00:37]}  Rxb2 {[%clk 0:00:35]} 32. Rxc6 {[%clk 0:00:37]}  Rxa2 {[%clk 0:00:35]} 33. Rc5 {[%clk 0:00:36]}  b4 {[%clk 0:00:35]} 34. Rxd5 {[%clk 0:00:34]}  b3 {[%clk 0:00:34]} 35. Rb5 {[%clk 0:00:34]}  b2 {[%clk 0:00:32]} 36. Kh2 {[%clk 0:00:34]}  a5 {[%clk 0:00:32]} 37. h5 {[%clk 0:00:34]}  Kg7 {[%clk 0:00:31]} 38. d5 {[%clk 0:00:34]}  a4 {[%clk 0:00:31]} 39. d6 {[%clk 0:00:34]}  b1=Q {[%clk 0:00:27]} 40. Rxb1 {[%clk 0:00:33]}  Rd2 {[%clk 0:00:27]} 41. Ra1 {[%clk 0:00:31]}  Rd4 {[%clk 0:00:25]} 42. d7 {[%clk 0:00:29]}  Kh6 {[%clk 0:00:24]} 43. g4 {[%clk 0:00:27]}  Kg5 {[%clk 0:00:24]} 44. Rxa4 {[%clk 0:00:26]}  Rd2+ {[%clk 0:00:21]} 45. Kg3 {[%clk 0:00:26]}  Rd3+ {[%clk 0:00:20]} 46. Kf2 {[%clk 0:00:26]}  Rxd7 {[%clk 0:00:20]} 47. Kf3 {[%clk 0:00:26]}  Rd3+ {[%clk 0:00:19]} 48. Ke4 {[%clk 0:00:25]}  Rg3 {[%clk 0:00:19]} 49. Ke5 {[%clk 0:00:26]}  Re3+ {[%clk 0:00:18]} 50. Kd6 {[%clk 0:00:25]}  Re1 {[%clk 0:00:17]} 51. Rd4 {[%clk 0:00:23]}  Re2 {[%clk 0:00:17]} 52. Kd5 {[%clk 0:00:13]}  Re1 {[%clk 0:00:17]} 53. Kc4 {[%clk 0:00:13]}  Re2 {[%clk 0:00:17]} 54. Kd3 {[%clk 0:00:14]}  Re1 {[%clk 0:00:17]} 55. Re4 {[%clk 0:00:14]}  Rd1+ {[%clk 0:00:15]} 56. Ke3 {[%clk 0:00:14]}  Ra1 {[%clk 0:00:15]} 57. Kd4 {[%clk 0:00:15]}  Ra4+ {[%clk 0:00:15]} 58. Ke5 {[%clk 0:00:15]}  Ra5+ {[%clk 0:00:15]} 59. Ke6 {[%clk 0:00:16]}  Ra6+ {[%clk 0:00:15]} 60. Kf7 {[%clk 0:00:16]}  Ra7+ {[%clk 0:00:15]} 61. Re7 {[%clk 0:00:16]}  Ra4 {[%clk 0:00:15]} 62. Kg7 {[%clk 0:00:13]}  Rxg4 {[%clk 0:00:07]} 63. h6 {[%clk 0:00:13]}  Kf5+ {[%clk 0:00:08]} 64. Kf7 {[%clk 0:00:11]}  Rh4 {[%clk 0:00:07]} 65. Re6 {[%clk 0:00:11]}  Kg5 {[%clk 0:00:06]} 66. Rg6+ {[%clk 0:00:10]}  Kf5 {[%clk 0:00:06]} 67. Kg7 {[%clk 0:00:10]}  Ra4 {[%clk 0:00:07]} 68. Rf6+ {[%clk 0:00:11]}  Kg5 {[%clk 0:00:07]} 69. h7 {[%clk 0:00:11]}  Ra7+ {[%clk 0:00:00]} 70. Rf7 {[%clk 0:00:12]} 1-0


[Site "https://www.chess.com"]